Workbook

Sheet Sheet3
A1: 附件1
A2: 铜仁市2023年“千名英才·智汇铜仁”引才玉屏自治县职位（含国企） 总成绩汇总表
A3: 序号 | B3: 姓名 | C3: 引才单位名称 | D3: 岗位代码 | E3: 岗位名称 | F3: 笔试成绩 | G3: 面试成绩 | H3: 总成绩 | I3: 排名 | J3: 备注
A4: 1 | B4: 赵露 | C4: 玉屏侗族自治县劳动保障综合行政执法大队 | D4: 03 | E4: 工作人员 | F4: 71.58 | G4: 85 | H4: =G4*50%+F4*50% -> 78.29 | I4: 1 | J4: 拟签约
A5: 2 | B5: 高瑶 | C5: 玉屏侗族自治县劳动保障综合行政执法大队 | D5: 03 | E5: 工作人员 | F5: 73.2 | G5: 79 | H5: 76.1 | I5: 2
A6: 3 | B6: 周莎莎 | C6: 玉屏侗族自治县劳动保障综合行政执法大队 | D6: 03 | E6: 工作人员 | F6: 72.62 | G6: 59.1 | H6: 65.86 | I6: 3
A7: 4 | B7: 刘叶弥 | C7: 玉屏侗族自治县粮食和物资储备中心 | D7: 04 | E7: 工作人员 | F7: 74.72 | G7: 79 | H7: 76.86 | I7: 1 | J7: 拟签约
A8: 5 | B8: 陈虹亚 | C8: 玉屏侗族自治县粮食和物资储备中心 | D8: 04 | E8: 工作人员 | F8: 73.16 | G8: 74 | H8: 73.58 | I8: 2
A9: 6 | B9: 吴涛 | C9: 玉屏侗族自治县粮食和物资储备中心 | D9: 04 | E9: 工作人员 | F9: 69.52 | G9: 76.3 | H9: 72.91 | I9: 3
A10: 7 | B10: 潘毅 | C10: 玉屏侗族自治县市政管理中心 | D10: 05 | E10: 工作人员 | F10: 77.4 | G10: 81.6 | H10: 79.5 | I10: 1 | J10: 拟签约
A11: 8 | B11: 张杰 | C11: 玉屏侗族自治县市政管理中心 | D11: 05 | E11: 工作人员 | F11: 77.96 | G11: 79.3 | H11: 78.63 | I11: 2
A12: 9 | B12: 张云松 | C12: 玉屏侗族自治县市政管理中心 | D12: 05 | E12: 工作人员 | F12: 79.5 | G12: 77.5 | H12: 78.5 | I12: 3
A13: 10 | B13: 刘婷蕾 | C13: 玉屏侗族自治县保障性住房服务中心 | D13: 07 | E13: 工作人员 | F13: 73.18 | G13: 82.8 | H13: 77.99 | I13: 1 | J13: 拟签约
A14: 11 | B14: 石佳乐 | C14: 玉屏侗族自治县保障性住房服务中心 | D14: 07 | E14: 工作人员 | F14: 77.94 | G14: 77.2 | H14: 77.57 | I14: 2
A15: 12 | B15: 毛炳瑞 | C15: 玉屏侗族自治县保障性住房服务中心 | D15: 07 | E15: 工作人员 | F15: 73.14 | G15: 缺考 | I15: 3
A16: 13 | B16: 姚宗兰 | C16: 玉屏侗族自治县财政局田坪分局 | D16: 08 | E16: 专业技术岗 | F16: 75.26 | G16: 73.8 | H16: =G16*50%+F16*50% -> 74.53 | I16: 1 | J16: 拟签约
A17: 14 | B17: 石维丽 | C17: 玉屏侗族自治县财政局田坪分局 | D17: 08 | E17: 专业技术岗 | F17: 74.2 | G17: 72.7 | H17: =G17*50%+F17*50% -> 73.45 | I17: 2
A18: 15 | B18: 刘新萍 | C18: 玉屏侗族自治县财政局田坪分局 | D18: 08 | E18: 专业技术岗 | F18: 67.38 | G18: 缺考 | I18: 3
A19: 16 | B19: 张航 | C19: 贵州玉屏㵲阳河国家湿地公园管理局 | D19: 09 | E19: 专业技术岗 | F19: 72.62 | G19: 79.4 | H19: =G19*50%+F19*50% -> 76.01 | I19: 1 | J19: 拟签约
A20: 17 | B20: 吴泽伟 | C20: 贵州玉屏㵲阳河国家湿地公园管理局 | D20: 09 | E20: 专业技术岗 | F20: 71.08 | G20: 77.8 | H20: =G20*50%+F20*50% -> 74.44 | I20: 2
A21: 18 | B21: 向凯旋 | C21: 贵州玉屏㵲阳河国家湿地公园管理局 | D21: 09 | E21: 专业技术岗 | F21: 69.48 | G21: 缺考 | I21: 3
A22: 19 | B22: 刘洋 | C22: 玉屏侗族自治县广播电视无线发射台 | D22: 10 | E22: 工作人员 | F22: 71.08 | G22: 68.9 | H22: =G22*50%+F22*50% -> 69.99 | I22: 1 | J22: 拟签约
A23: 20 | B23: 张达 | C23: 玉屏侗族自治县广播电视无线发射台 | D23: 10 | E23: 工作人员 | F23: 80.04 | G23: 缺考 | I23: 2
A24: 21 | B24: 惠世旭 | C24: 玉屏侗族自治县广播电视无线发射台 | D24: 10 | E24: 工作人员 | F24: 75.78 | G24: 缺考 | I24: 3
A25: 22 | B25: 罗贤发 | C25: 玉屏侗族自治县融媒体中心 | D25: 11 | E25: 工作人员 | F25: 76.84 | G25: 84.2 | H25: =G25*50%+F25*50% -> 80.52 | I25: 1 | J25: 拟签约
A26: 23 | B26: 雷开银 | C26: 玉屏侗族自治县融媒体中心 | D26: 11 | E26: 工作人员 | F26: 75.3 | G26: 78.8 | H26: =G26*50%+F26*50% -> 77.05 | I26: 2
A27: 24 | B27: 陈宏莉 | C27: 玉屏侗族自治县融媒体中心 | D27: 11 | E27: 工作人员 | F27: 63.22 | G27: 缺考 | I27: 3
A28: 25 | B28: 黄鑫 | C28: 玉屏侗族自治县中等职业学校 | D28: 12 | E28: 汽修专业教师 | F28: 77.92 | G28: 74.5 | H28: =G28*50%+F28*50% -> 76.21 | I28: 1 | J28: 拟签约
A29: 26 | B29: 卢陆 | C29: 玉屏侗族自治县中等职业学校 | D29: 12 | E29: 汽修专业教师 | F29: 71.64 | G29: 79.1 | H29: 75.37 | I29: 2
A30: 27 | B30: 丁福坤 | C30: 玉屏侗族自治县中等职业学校 | D30: 12 | E30: 汽修专业教师 | F30: 72.12 | G30: 74.86 | H30: 73.49 | I30: 3
A31: 28 | B31: 侯佳亮 | C31: 玉屏侗族自治县中等职业学校 | D31: 13 | E31: 机电技术专业教师 | F31: 75.82 | G31: 81.3 | H31: 78.56 | I31: 1 | J31: 拟签约
A32: 29 | B32: 李龙 | C32: 玉屏侗族自治县中等职业学校 | D32: 13 | E32: 机电技术专业教师 | F32: 68.96 | G32: 82.2 | H32: 75.58 | I32: 2
A33: 30 | B33: 张锐 | C33: 玉屏侗族自治县中等职业学校 | D33: 13 | E33: 机电技术专业教师 | F33: 69.54 | G33: 72.8 | H33: 71.17 | I33: 3
A34: 31 | B34: 田倩倩 | C34: 玉屏侗族自治县中等职业学校 | D34: 14 | E34: 中医康养教师 | F34: 73.72 | G34: 78.32 | H34: 76.02 | I34: 1 | J34: 拟签约
A35: 32 | B35: 黄成娟 | C35: 玉屏侗族自治县中等职业学校 | D35: 14 | E35: 中医康养教师 | F35: 73.12 | G35: 75.7 | H35: 74.41 | I35: 2
A36: 33 | B36: 杨前超 | C36: 玉屏侗族自治县中等职业学校 | D36: 14 | E36: 中医康养教师 | F36: 70 | G36: 72.6 | H36: 71.3 | I36: 3
A37: 34 | B37: 杨攀 | C37: 玉屏侗族自治县中等职业学校 | D37: 15 | E37: 数学教师 | F37: 64.7 | G37: 74.84 | H37: 69.77 | I37: 1 | J37: 拟签约
A38: 35 | B38: 崔玲玲 | C38: 玉屏侗族自治县中等职业学校 | D38: 15 | E38: 数学教师 | F38: 65.24 | G38: 70.4 | H38: 67.82 | I38: 2
A39: 36 | B39: 田简 | C39: 玉屏侗族自治县中等职业学校 | D39: 15 | E39: 数学教师 | F39: 61.04 | G39: 72.3 | H39: 66.67 | I39: 3
A40: 37 | B40: 姚丹 | C40: 玉屏民族中学 | D40: 17 | E40: 语文教师 | F40: 达不到比例免试 | G40: 缺考
A41: 38 | B41: 何丽娟 | C41: 玉屏侗族自治县金鑫融资担保有限责任公司 | D41: 79 | E41: 综合部职员 | F41: 71.62 | G41: 80.02 | H41: =G41*50%+F41*50% -> 75.82 | I41: 1 | J41: 拟签约
A42: 39 | B42: 程有能 | C42: 玉屏侗族自治县金鑫融资担保有限责任公司 | D42: 79 | E42: 综合部职员 | F42: 69.44 | G42: 76 | H42: 72.72 | I42: 2
A43: 40 | B43: 陈米雪 | C43: 玉屏侗族自治县金鑫融资担保有限责任公司 | D43: 79 | E43: 综合部职员 | F43: 68.94 | G43: 75.7 | H43: 72.32 | I43: 3
A44: 41 | B44: 陈坤石 | C44: 玉屏侗族自治县金鑫融资担保有限责任公司 | D44: 81 | E44: 业务部职员 | F44: 77.4 | G44: 75.8 | H44: 76.6 | I44: 1 | J44: 拟签约
A45: 42 | B45: 田欢 | C45: 玉屏侗族自治县金鑫融资担保有限责任公司 | D45: 81 | E45: 业务部职员 | F45: 66.88 | G45: 77.4 | H45: 72.14 | I45: 2 | J45: 拟签约
A46: 43 | B46: 姚武林 | C46: 玉屏侗族自治县金鑫融资担保有限责任公司 | D46: 81 | E46: 业务部职员 | F46: 70 | G46: 72.5 | H46: 71.25 | I46: 3
A47: 44 | B47: 沈启明 | C47: 玉屏侗族自治县金鑫融资担保有限责任公司 | D47: 81 | E47: 业务部职员 | F47: 68.42 | G47: 74 | H47: 71.21 | I47: 4
A48: 45 | B48: 张卫 | C48: 玉屏侗族自治县金鑫融资担保有限责任公司 | D48: 81 | E48: 业务部职员 | F48: 68.44 | G48: 73.2 | H48: 70.82 | I48: 5
A49: 46 | B49: 田振 | C49: 玉屏侗族自治县金鑫融资担保有限责任公司 | D49: 81 | E49: 业务部职员 | F49: 68.42 | G49: 72.9 | H49: 70.66 | I49: 6
A50: 47 | B50: 杨兰芬 | C50: 玉屏永昇国有资产投资管理有限公司 | D50: 82 | E50: 投融资部 | F50: 61.04 | G50: 77.62 | H50: 69.33 | I50: 1 | J50: 拟签约
